bitfinex/quotes_BTCUSD_20250711
["timestamp","ask_amount","ask_price","bid_price","bid_amount"]
[1752230419384,0.93472841,118010.0,118000.0,0.68188581]
[1752230419593,0.93472841,118010.0,118000.0,0.55220581]
[1752230419892,0.98552841,118010.0,118000.0,0.67975581]
[1752230420990,0.98552841,118010.0,118000.0,0.55007581]
[1752230421212,0.14723993,118010.0,118000.0,0.67975581]
[1752230421425,0.58552841,118010.0,118000.0,0.67975581]
[1752230421996,0.98552841,118010.0,118000.0,0.67975581]
[1752230422459,0.58552841,118010.0,118000.0,0.67975581]
[1752230422951,0.71520841,118010.0,118000.0,0.67975581]
[1752230423505,0.71520841,118010.0,118000.0,0.55007581]
[1752230423818,0.71520841,118010.0,118000.0,0.67975581]
[1752230424439,0.7324253,118010.0,118000.0,0.67975581]
[1752230425072,0.71866546,118010.0,118000.0,0.67975581]
[1752230428507,0.71866546,118010.0,118000.0,0.6980632]
[1752230428951,0.71866546,118010.0,118000.0,0.67975581]
[1752230430546,0.58898546,118010.0,118000.0,0.67975581]
[1752230430992,0.71866546,118010.0,118000.0,0.67975581]
[1752230431411,0.58898546,118010.0,118000.0,0.67975581]
[1752230431956,0.66481546,118010.0,118000.0,0.67975581]
[1752230432964,0.09488698,118010.0,118000.0,0.73719581]
[1752230433181,0.53317546,118010.0,118000.0,0.73719581]
[1752230434172,0.53317546,118010.0,118000.0,0.75302693]
[1752230434374,0.52301507,118010.0,118000.0,0.75302693]
[1752230435150,0.50925621,118010.0,118000.0,0.75302693]
[1752230436947,0.07096773,118010.0,118000.0,0.75302693]
[1752230437400,0.025418,118010.0,118000.0,0.75302693]
[1752230437613,0.83828848,118020.0,118010.0,0.0517]
[1752230437814,0.94913041,118020.0,118010.0,0.33219112]
[1752230438032,0.51084193,118020.0,118010.0,0.33219112]
[1752230438381,0.94913041,118020.0,118010.0,0.33219112]
[1752230438960,0.95213041,118020.0,118010.0,0.33219112]
[1752230439591,0.55213041,118020.0,118010.0,0.33219112]
[1752230439790,0.52671841,118020.0,118010.0,0.32919112]
[1752230440009,0.92671841,118020.0,118010.0,0.32919112]
[1752230440543,0.92671841,118020.0,118010.0,0.30249112]
[1752230440753,0.92971841,118020.0,118010.0,0.30249112]
[1752230440969,0.92671841,118020.0,118010.0,0.30249112]
[1752230441260,0.92871841,118020.0,118010.0,0.30249112]
[1752230441470,0.52871841,118020.0,118010.0,0.32829112]
[1752230443196,0.52571841,118020.0,118010.0,0.32829112]
[1752230443352,0.52771841,118020.0,118010.0,0.32829112]
[1752230443781,0.08942993,118020.0,118010.0,0.32829112]
[1752230444168,0.52771841,118020.0,118010.0,0.32829112]
[1752230444479,0.51555863,118020.0,118010.0,0.32831677]
[1752230444685,0.51655863,118020.0,118010.0,0.32831677]
[1752230444887,0.91655863,118020.0,118010.0,0.32831677]
[1752230445218,0.84128848,118020.0,118010.0,0.32831677]
[1752230446055,0.403,118020.0,118010.0,0.32831677]
[1752230446261,0.003,118020.0,118010.0,0.32831677]
[1752230446477,0.001,118020.0,118010.0,0.32831677]
[1752230447158,0.44028848,118020.0,118010.0,0.32831677]
[1752230447466,0.002,118020.0,118010.0,0.32831677]
[1752230447662,0.44028848,118020.0,118010.0,0.32831677]
[1752230447869,0.44028848,118020.0,118010.0,0.34624525]
[1752230449300,0.002,118020.0,118010.0,0.34624525]
[1752230449762,0.83828848,118030.0,118020.0,0.0269]
[1752230449994,0.92371841,118030.0,118020.0,0.04471677]
[1752230450210,0.92371841,118030.0,118020.0,0.04767677]
[1752230450435,0.4,118030.0,118020.0,0.07407677]
[1752230450651,0.83828848,118030.0,118020.0,0.07407677]
[1752230451068,0.84028848,118030.0,118020.0,0.07407677]
[1752230451507,0.402,118030.0,118020.0,0.07407677]
[1752230452361,0.84028848,118030.0,118020.0,0.07407677]
[1752230454534,0.8301303,118030.0,118020.0,0.07407677]
[1752230455093,0.002,118030.0,118020.0,0.07407677]
[1752230455474,0.402,118030.0,118020.0,0.07407677]
[1752230455674,0.84028848,118030.0,118020.0,0.07407677]
[1752230456399,0.002,118030.0,118020.0,0.07407677]
[1752230456679,0.001,118030.0,118020.0,0.07407677]
[1752230456930,0.83828848,118040.0,118020.0,0.07407677]
[1752230457145,0.43828848,118030.0,118020.0,0.07111677]
[1752230457342,0.43828848,118030.0,118020.0,0.33135677]
[1752230457706,0.43828848,118030.0,118020.0,0.33431677]
[1752230458827,0.4,118040.0,118020.0,0.7338461]
[1752230458999,0.002,118050.0,118030.0,0.05616]
[1752230459225,0.44228848,118050.0,118040.0,0.2612]
[1752230459513,0.84228848,118050.0,118040.0,0.28001677]
[1752230461035,0.84428848,118050.0,118040.0,0.28001677]
[1752230461360,0.84428848,118050.0,118040.0,0.27705677]
[1752230462130,0.84628848,118050.0,118040.0,0.27705677]
[1752230462565,0.44628848,118050.0,118040.0,0.27702236]
[1752230462805,0.44628848,118050.0,118040.0,0.27998236]
[1752230463112,0.006,118050.0,118040.0,0.33118236]
[1752230463321,0.44428848,118050.0,118040.0,0.33118236]
[1752230464458,0.4341316,118050.0,118040.0,0.33118236]
[1752230464884,0.4361316,118050.0,118040.0,0.30202236]
[1752230465096,0.002,118050.0,118040.0,0.27702236]
[1752230465292,0.44028848,118050.0,118040.0,0.27702236]
[1752230465712,0.44028848,118050.0,118040.0,0.27998236]
[1752230466753,0.43828848,118050.0,118040.0,0.34712321]
[1752230467161,0.44028848,118050.0,118040.0,0.32962236]
[1752230467363,0.44327848,118050.0,118040.0,0.27506236]
[1752230468002,0.44327848,118050.0,118040.0,0.01582236]
[1752230468212,0.96699689,118050.0,118040.0,0.14542037]
[1752230468415,1.08679035,118050.0,118040.0,0.01582037]
[1752230469190,0.64850187,118050.0,118040.0,0.01582037]
[1752230469691,1.08679035,118050.0,118040.0,0.01582037]
[1752230469876,0.64850187,118050.0,118040.0,0.01582037]
[1752230470085,0.67391087,118050.0,118040.0,0.01582037]
[1752230471062,0.60641741,118050.0,118040.0,0.01582037]
[1752230474205,0.29772893,118050.0,118040.0,0.01582037]
[1752230474435,0.54396003,118050.0,118040.0,0.01582037]
[1752230474611,0.67352003,118050.0,118040.0,0.01903037]
[1752230474832,0.54396003,118050.0,118040.0,0.07489037]
[1752230475041,0.93020518,118050.0,118040.0,0.07489037]
[1752230475257,0.53020518,118050.0,118040.0,0.07489037]
[1752230475464,0.50479618,118050.0,118040.0,0.04809037]
[1752230475686,0.0665077,118050.0,118040.0,0.04809037]
[1752230475885,0.50479618,118050.0,118040.0,0.04809037]
[1752230478199,0.50479618,118050.0,118040.0,0.02099037]
[1752230484602,0.43828848,118050.0,118040.0,0.02099037]
[1752230487964,0.43828848,118050.0,118040.0,0.0210255]
[1752230491127,1.01440689,118050.0,118040.0,0.0158555]
[1752230492421,1.03981489,118050.0,118040.0,0.0158555]
[1752230493072,1.16937489,118050.0,118040.0,0.0158555]
[1752230493517,1.16937489,118050.0,118040.0,0.01585807]
[1752230494589,1.15921661,118050.0,118040.0,0.01585807]
[1752230495037,1.55921661,118050.0,118040.0,0.01585807]
[1752230495992,1.15921661,118050.0,118040.0,0.01585807]
[1752230500684,0.72092813,118050.0,118040.0,0.01585807]
[1752230500908,0.68536181,118050.0,118040.0,0.01585807]
[1752230504658,0.67520355,118050.0,118040.0,0.01585698]
[1752230504882,0.62280355,118050.0,118040.0,0.01585698]
[1752230507639,0.62280355,118050.0,118040.0,0.01891698]
[1752230508445,0.6090481,118050.0,118040.0,0.01891698]
[1752230509060,0.6089794,118050.0,118040.0,0.01891698]
[1752230511451,0.63451196,118050.0,118040.0,0.01891698]
[1752230513260,0.6089794,118050.0,118040.0,0.01891698]
[1752230513895,0.4794194,118050.0,118040.0,0.01891698]
[1752230514525,0.6089394,118050.0,118040.0,0.01891698]
[1752230514725,0.5987812,118050.0,118040.0,0.01891698]
[1752230514903,1.14648266,118050.0,118040.0,0.01891698]
[1752230515146,1.14648266,118050.0,118040.0,0.01391698]
[1752230515364,1.01696266,118050.0,118040.0,0.01391698]
[1752230515561,1.14648266,118050.0,118040.0,0.01391698]
[1752230520459,1.14648266,118050.0,118040.0,0.01085698]
[1752230521304,2.03337763,118050.0,118040.0,0.01085698]
[1752230521514,0.57980372,118050.0,118040.0,0.01085698]
[1752230521726,1.51189366,118050.0,118040.0,0.01391698]
[1752230521941,1.51189366,118050.0,118040.0,0.01085698]
[1752230523519,1.38237366,118050.0,118040.0,0.01391698]
[1752230523731,1.51189366,118050.0,118040.0,0.01391698]
[1752230524580,1.50173498,118050.0,118040.0,0.01391698]
[1752230524792,1.50173498,118050.0,118040.0,0.01085698]
[1752230525014,1.4474778,118050.0,118040.0,0.01085698]
[1752230526095,1.47303657,118050.0,118030.0,0.00306]
[1752230526308,0.87653276,118040.0,118030.0,0.00306]
[1752230526535,1.05321631,118040.0,118030.0,0.00519]
[1752230526753,1.49148269,118040.0,118030.0,0.00519]
[1752230527199,1.05321631,118040.0,118030.0,0.02105214]
[1752230529774,0.65321631,118040.0,118030.0,0.02105214]
[1752230531057,0.70651631,118040.0,118030.0,0.01586214]
[1752230531257,1.14478269,118040.0,118030.0,0.01586214]
[1752230531673,1.17019569,118040.0,118030.0,0.01586214]
[1752230532087,0.73192931,118040.0,118030.0,0.01586214]
[1752230534148,1.07192931,118040.0,118030.0,0.01586214]
[1752230534593,1.06177009,118040.0,118030.0,0.01586214]
[1752230536844,1.03607009,118040.0,118030.0,0.01586214]
[1752230539106,0.59780371,118040.0,118030.0,0.01586214]
[1752230539323,1.03607009,118040.0,118030.0,0.01586214]
[1752230540173,1.03607009,118040.0,118030.0,0.01585436]
[1752230540382,1.06267009,118040.0,118030.0,0.01585436]
[1752230541283,0.62440371,118040.0,118030.0,0.01585436]
[1752230541504,1.06267009,118040.0,118030.0,0.01585436]
[1752230541992,0.025413,118040.0,118030.0,1.31277206]
[1752230542213,0.00149707,118040.0,118030.0,1.40353855]
[1752230542447,0.13152,118070.0,118050.0,0.01454085]
[1752230542659,0.21694993,118070.0,118060.0,0.0257]
[1752230542874,0.21694993,118070.0,118060.0,0.04681436]
[1752230543086,0.08742993,118070.0,118060.0,0.04681436]
[1752230543513,0.42742993,118070.0,118060.0,0.04681436]
[1752230543724,0.42942993,118070.0,118060.0,0.04681436]
[1752230543932,0.43342993,118070.0,118060.0,0.04681436]
[1752230544147,0.56290993,118070.0,118060.0,0.04681436]
[1752230544352,0.56090993,118070.0,118060.0,0.06135521]
[1752230544567,0.56390993,118070.0,118060.0,0.06135521]
[1752230544781,0.55375379,118070.0,118060.0,0.06135521]
[1752230546721,1.04102017,118070.0,118060.0,0.03039521]
[1752230548020,0.99202017,118070.0,118060.0,0.03039521]
[1752230550022,0.55375379,118070.0,118060.0,0.03039521]
[1752230550233,0.55375379,118070.0,118060.0,0.03357521]
[1752230553256,0.99202017,118070.0,118060.0,0.03357521]
[1752230554140,0.99202017,118070.0,118060.0,0.03353075]
[1752230554769,0.98186355,118070.0,118060.0,0.03353075]
[1752230556828,0.54359717,118070.0,118060.0,0.03353075]
[1752230557706,0.98186355,118070.0,118060.0,0.03035075]
[1752230557962,1.02596355,118070.0,118060.0,0.0158099]
[1752230559679,1.02596355,118070.0,118060.0,0.01580994]
[1752230561155,1.07596355,118070.0,118060.0,0.01580994]
[1752230561422,1.10137355,118070.0,118060.0,0.01580994]
[1752230562266,1.43680348,118070.0,118060.0,0.01580994]
[1752230562466,1.43680348,118070.0,118040.0,0.002]
[1752230562467,0.39,118060.0,118040.0,0.002]
[1752230562670,0.69907631,118050.0,118040.0,0.01781553]
[1752230563734,0.72448931,118050.0,118040.0,0.01781553]
[1752230563945,0.59600931,118050.0,118040.0,0.01781553]
[1752230564160,0.72548931,118050.0,118040.0,0.01781553]
[1752230565008,0.72548931,118050.0,118040.0,0.01781733]
[1752230566093,0.72648931,118050.0,118040.0,0.01781733]
[1752230568664,0.24232293,118050.0,118040.0,0.02285733]
[1752230568872,0.24232293,118050.0,118040.0,0.02075733]
[1752230569076,0.68058931,118050.0,118040.0,0.01781733]
[1752230570294,0.55110931,118050.0,118040.0,0.01781733]
[1752230570493,0.68058931,118050.0,118040.0,0.01781733]
[1752230574113,0.68058931,118050.0,118040.0,0.00494]
[1752230574547,0.11284293,118050.0,118040.0,0.02158085]
[1752230574755,0.11284293,118050.0,118040.0,0.06658085]
[1752230574970,0.24232293,118050.0,118040.0,0.06658085]
[1752230576237,0.68058931,118050.0,118040.0,0.06658085]
[1752230576682,0.24232293,118050.0,118040.0,0.06658085]
[1752230576913,0.11284293,118050.0,118040.0,0.06658085]
[1752230577136,0.21690993,118050.0,118040.0,0.06658085]
[1752230577575,0.23123045,118050.0,118040.0,0.06658085]
[1752230577805,0.21690993,118050.0,118040.0,0.06658085]
[1752230580259,0.07727178,118050.0,118040.0,0.08240548]
[1752230580469,0.20675178,118050.0,118040.0,0.08240548]
[1752230585207,0.60675178,118050.0,118040.0,0.08240548]
[1752230587955,0.402,118050.0,118040.0,0.65011186]
[1752230588173,0.002,118050.0,118040.0,0.65011186]
[1752230588415,0.48409796,118060.0,118050.0,0.06184085]
[1752230588631,0.56952789,118060.0,118050.0,0.07981548]
[1752230588838,0.56952789,118060.0,118050.0,0.08275548]
[1752230589758,0.57152789,118060.0,118050.0,0.08275548]
[1752230590101,0.56337025,118060.0,118050.0,0.08275548]
[1752230590547,0.58877725,118060.0,118050.0,0.08275548]
[1752230591560,0.029407,118060.0,118050.0,0.08275548]
[1752230591777,0.13344,118060.0,118050.0,0.08275548]
[1752230592028,0.47344,118060.0,118050.0,0.08275548]
[1752230592932,0.344,118060.0,118050.0,0.08275548]
[1752230593145,0.47344,118060.0,118050.0,0.08275548]
[1752230593561,0.35861454,118060.0,118050.0,0.08275548]
[1752230593774,0.48805454,118060.0,118050.0,0.08275548]
[1752230595927,0.92632092,118060.0,118050.0,0.08275548]
[1752230596409,0.48805454,118060.0,118050.0,0.08275548]
[1752230597707,1.01175085,118060.0,118050.0,0.03545548]
[1752230598384,0.57348447,118060.0,118050.0,0.03545548]
[1752230598573,1.03715785,118060.0,118050.0,0.03545548]
[1752230599620,1.03715785,118060.0,118050.0,0.05935548]
[1752230599821,0.59889147,118060.0,118050.0,0.05935548]
[1752230600033,0.58873394,118060.0,118050.0,0.05935548]
[1752230601121,1.02700032,118060.0,118050.0,0.05935548]
[1752230602125,0.58873394,118060.0,118050.0,0.05935548]
[1752230602725,0.58873394,118060.0,118050.0,0.03545548]
[1752230603369,0.58873394,118060.0,118050.0,0.03330548]
[1752230603370,1.02700032,118060.0,118050.0,0.03330548]
[1752230603594,1.07230032,118060.0,118050.0,0.03036548]
[1752230606722,1.07230032,118060.0,118050.0,0.01454085]
[1752230608209,0.63403394,118060.0,118050.0,0.01454085]
[1752230608421,1.07230032,118060.0,118050.0,0.01454085]
[1752230609276,1.07230032,118060.0,118040.0,0.00508]
[1752230609483,0.65313631,118050.0,118040.0,0.01654085]
[1752230610129,0.67854631,118050.0,118040.0,0.01654085]
[1752230610341,0.67854631,118050.0,118040.0,0.01962085]
[1752230611125,0.67854631,118050.0,118040.0,0.01654085]
[1752230611337,0.72234631,118050.0,118040.0,0.01654085]
[1752230611538,0.28407993,118050.0,118040.0,0.01654085]
[1752230611796,1.06234631,118050.0,118040.0,0.002]
[1752230612011,1.92989839,118050.0,118040.0,0.002]
[1752230612203,1.95428343,118050.0,118040.0,0.01785833]
[1752230612361,1.92989839,118050.0,118040.0,0.01785833]
[1752230612563,1.86810615,118050.0,118040.0,0.01785833]
[1752230612747,1.73866615,118050.0,118040.0,0.01785833]
[1752230612957,1.80061269,118050.0,118040.0,0.01785833]
[1752230613851,1.83076289,118050.0,118040.0,0.01785833]
[1752230614472,1.83076289,118050.0,118040.0,0.002]
[1752230614831,1.83076289,118050.0,118040.0,0.0178295]
[1752230615703,1.83376289,118050.0,118040.0,0.0178295]
[1752230619275,1.70432289,118050.0,118040.0,0.0178295]
[1752230619500,1.14549651,118050.0,118040.0,0.0178295]
[1752230624257,0.92225651,118050.0,118040.0,0.0178295]
[1752230624458,0.89710631,118050.0,118040.0,0.0209695]
[1752230624662,1.02654631,118050.0,118040.0,0.0456295]
[1752230624863,1.02654631,118050.0,118040.0,0.0229295]
[1752230625666,1.02654631,118050.0,118040.0,0.0209695]
[1752230627323,1.07114631,118050.0,118040.0,0.0178295]
[1752230627727,1.02654631,118050.0,118040.0,0.0209695]
[1752230628583,1.02654631,118050.0,118040.0,0.02095339]
[1752230629882,1.07114631,118050.0,118040.0,0.02095339]
[1752230630323,1.07114631,118050.0,118040.0,0.01781339]
[1752230630526,0.94170631,118050.0,118040.0,0.01781339]
[1752230630727,1.07114631,118050.0,118040.0,0.01781339]
[1752230630932,1.02654631,118050.0,118040.0,0.01781339]
[1752230631340,1.02654631,118050.0,118040.0,0.02095339]
[1752230632703,0.11883993,118050.0,118040.0,0.08165424]
[1752230632925,0.24827993,118050.0,118040.0,0.08165424]
[1752230633142,0.58827993,118050.0,118040.0,0.08165424]
[1752230633581,0.58527993,118050.0,118040.0,0.08165424]
[1752230633795,0.58027993,118050.0,118040.0,0.08165424]
[1752230634016,0.45383993,118050.0,118040.0,0.08165424]
[1752230634229,0.01825256,118050.0,118040.0,0.51992062]
[1752230634676,0.003,118050.0,118040.0,0.51992062]
[1752230634893,0.34,118060.0,118040.0,0.47572062]
[1752230635108,0.34,118060.0,118050.0,0.04704]
[1752230635330,0.34,118060.0,118050.0,0.06481339]
[1752230635765,0.1294,118070.0,118060.0,0.05984085]
[1752230636011,0.1294,118070.0,118060.0,0.07761424]
[1752230636012,0.55482993,118070.0,118060.0,0.07761424]
[1752230636228,0.55482993,118070.0,118060.0,0.08075424]
[1752230636879,0.55682993,118070.0,118060.0,0.08075424]
[1752230638231,0.55782993,118070.0,118060.0,0.08075424]
[1752230644789,0.343,118070.0,118060.0,0.08075424]
[1752230645000,0.4724,118070.0,118060.0,0.08075424]
[1752230646395,0.343,118070.0,118060.0,0.08075424]
[1752230646597,0.47236,118070.0,118060.0,0.08075424]
[1752230647391,0.343,118070.0,118060.0,0.08075424]
[1752230647815,0.47236,118070.0,118060.0,0.08075424]
[1752230648459,0.13236,118070.0,118060.0,0.08075424]
[1752230648678,0.52220358,118070.0,118060.0,0.08075424]
[1752230652707,0.4,118070.0,118060.0,0.08075424]
[1752230652948,0.52936,118070.0,118060.0,0.08075424]
[1752230653401,0.83826638,118070.0,118060.0,0.03545424]
[1752230653636,0.56762638,118070.0,118060.0,0.03545424]
[1752230654511,0.56762638,118070.0,118060.0,0.05735424]
[1752230654944,0.86369631,118070.0,118060.0,0.03545424]
[1752230655172,1.03675631,118070.0,118060.0,0.01581339]
[1752230656660,0.69675631,118070.0,118060.0,0.01581339]
[1752230656872,0.67465631,118070.0,118060.0,0.01581339]
[1752230657075,0.65305631,118070.0,118060.0,0.01581339]
[1752230658346,0.65305631,118070.0,118060.0,0.01581707]
[1752230659226,1.03615631,118070.0,118060.0,0.01581707]
[1752230659874,1.43615631,118070.0,118060.0,0.01581707]
[1752230661417,1.42599877,118070.0,118060.0,0.01581707]
[1752230662075,1.42595877,118070.0,118060.0,0.01581707]
[1752230662576,1.38285877,118070.0,118060.0,0.01581707]
[1752230663840,1.25353877,118070.0,118060.0,0.01581707]
[1752230664007,1.38285877,118070.0,118060.0,0.01581707]
[1752230665331,0.98285877,118070.0,118060.0,0.01581707]
[1752230665522,0.54459239,118070.0,118060.0,0.01881707]
[1752230665771,0.98285877,118070.0,118060.0,0.01881707]
[1752230666589,0.54459239,118070.0,118060.0,0.01881707]
[1752230666800,0.98285877,118070.0,118060.0,0.01881707]
[1752230667034,0.54459239,118070.0,118060.0,0.02081707]
[1752230667258,0.98285877,118070.0,118060.0,0.04261707]
[1752230668386,0.54459239,118070.0,118060.0,0.04261707]
[1752230668608,0.98285877,118070.0,118060.0,0.04261707]
[1752230669491,0.98285877,118070.0,118060.0,0.02085547]
[1752230671701,0.97270122,118070.0,118060.0,0.02085547]
[1752230673419,0.97270122,118070.0,118060.0,0.01585547]
[1752230675319,1.01580122,118070.0,118060.0,0.01585547]
[1752230675548,1.04120722,118070.0,118060.0,0.01585547]
[1752230676171,0.86878722,118070.0,118060.0,0.01585547]
[1752230676379,0.99810722,118070.0,118060.0,0.01585547]
[1752230677900,0.55984084,118070.0,118060.0,0.01585547]
[1752230678132,0.99810722,118070.0,118060.0,0.01585547]
[1752230678551,0.99810722,118070.0,118060.0,0.01885547]
[1752230680613,0.55984084,118070.0,118060.0,0.01885547]
[1752230680849,0.99810722,118070.0,118060.0,0.01885547]
[1752230681620,0.98794952,118070.0,118060.0,0.01885547]
[1752230682503,1.04135977,118070.0,118060.0,0.00739095]
[1752230682721,0.59138314,118070.0,118060.0,0.00739095]
[1752230682936,0.34,118060.0,118040.0,0.05819085]
[1752230683153,0.99297631,118050.0,118040.0,0.05819085]
[1752230683373,0.99297631,118050.0,118040.0,0.06027085]
[1752230683374,0.55470993,118050.0,118040.0,0.06027085]
[1752230684914,0.58038028,118050.0,118040.0,0.06127085]
[1752230685839,0.58038028,118050.0,118040.0,0.06227085]
[1752230686260,0.58038028,118050.0,118040.0,0.06127085]
[1752230686681,0.58038028,118050.0,118040.0,0.06227085]
[1752230689572,0.45110028,118050.0,118040.0,0.06227085]
[1752230689777,0.58038028,118050.0,118040.0,0.06227085]
[1752230691589,0.58679585,118050.0,118040.0,0.06227085]
[1752230692025,0.34,118050.0,118040.0,0.06227085]
[1752230692245,0.34,118050.0,118040.0,0.50053723]
[1752230693191,0.34,118050.0,118040.0,0.06227085]
[1752230694814,0.34,118050.0,118040.0,0.07811992]
[1752230697606,0.34,118050.0,118040.0,0.07812134]
[1752230698022,0.34,118050.0,118040.0,0.05872134]
[1752230699272,0.77826638,118050.0,118040.0,0.03942134]
[1752230700365,0.86369631,118050.0,118040.0,0.01854085]
[1752230700585,0.86369631,118050.0,118040.0,0.03439322]
[1752230700795,0.86369631,118050.0,118040.0,0.03734322]
[1752230701026,0.86369631,118050.0,118040.0,0.03734334]
[1752230701664,0.92369631,118050.0,118040.0,0.01985249]
[1752230701912,1.09417631,118050.0,118040.0,0.01985249]
[1752230702127,0.69417631,118050.0,118040.0,0.01985249]
[1752230702775,0.71958731,118050.0,118040.0,0.01985249]
[1752230702979,0.69948731,118050.0,118040.0,0.01985249]
[1752230703646,1.0390624,118050.0,118040.0,0.01985249]
[1752230703855,1.0644734,118050.0,118040.0,0.01985249]
[1752230704699,1.0433734,118050.0,118040.0,0.01985249]
[1752230706910,0.60510702,118050.0,118040.0,0.01985249]
[1752230707117,1.0433734,118050.0,118040.0,0.01985249]
[1752230707335,1.0842734,118050.0,118040.0,0.01985249]
[1752230707567,1.0588624,118050.0,118040.0,0.01985249]
[1752230707776,1.0842744,118050.0,118040.0,0.01985249]
[1752230712509,0.64600802,118050.0,118040.0,0.01985249]
[1752230712746,1.0842744,118050.0,118040.0,0.01985249]
[1752230715914,1.0643744,118050.0,118040.0,0.01985249]
[1752230717287,1.0433744,118050.0,118040.0,0.01985249]
[1752230718922,0.60510802,118050.0,118040.0,0.02293249]
[1752230720366,0.47582802,118050.0,118040.0,0.06053334]
[1752230720544,0.49426609,118050.0,118040.0,0.07983334]
[1752230721603,0.46928,118050.0,118040.0,0.07983334]
[1752230722557,0.45912128,118050.0,118040.0,0.07983334]
[1752230724104,0.32984128,118050.0,118040.0,0.07983334]
[1752230724305,0.45912128,118050.0,118040.0,0.07983334]
[1752230724717,0.32984128,118050.0,118040.0,0.07983334]
[1752230724887,0.45912128,118050.0,118040.0,0.07983334]
[1752230727935,0.025409,118060.0,118050.0,0.05464085]
[1752230728147,0.59529672,118060.0,118050.0,0.07255334]
[1752230728354,0.56988772,118060.0,118050.0,0.07563334]
[1752230728568,0.55466993,118060.0,118050.0,0.07563334]
[1752230729398,0.425408,118070.0,118060.0,0.0388]
[1752230729614,0.4,118070.0,118060.0,0.51259972]
[1752230729839,0.86924,118070.0,118060.0,0.07433334]
[1752230730693,0.87024,118070.0,118060.0,0.07433334]
[1752230731131,0.87124,118070.0,118060.0,0.07433334]
[1752230731985,1.30950638,118070.0,118060.0,0.07433334]
[1752230733488,1.29934904,118070.0,118060.0,0.07433334]
[1752230733896,1.29934904,118070.0,118060.0,0.05513334]
[1752230735112,0.86108266,118070.0,118060.0,0.07433334]
[1752230737447,1.29934904,118070.0,118060.0,0.07433334]
[1752230737641,0.86108266,118070.0,118060.0,0.07433334]
[1752230737858,0.73184266,118070.0,118060.0,0.07433334]
[1752230738115,0.86108266,118070.0,118060.0,0.07433334]
[1752230738753,0.73184266,118070.0,118060.0,0.07433334]
[1752230738963,0.86108266,118070.0,118060.0,0.07433334]
[1752230743429,0.72168549,118070.0,118060.0,0.07433334]
[1752230743633,0.51088549,118070.0,118060.0,0.07433334]
[1752230747229,0.51088549,118070.0,118060.0,0.07431615]
[1752230749980,0.51088549,118070.0,118060.0,0.07431814]
[1752230750578,0.38168549,118070.0,118060.0,0.07431814]
[1752230750785,0.51088549,118070.0,118060.0,0.07431814]
[1752230753466,0.5007287,118070.0,118060.0,0.07431814]
[1752230756991,0.99341321,118070.0,118060.0,0.07431814]
[1752230757901,0.99341321,118070.0,118060.0,0.05511814]
[1752230758438,0.86421321,118070.0,118060.0,0.05511814]
[1752230758660,0.002,118070.0,118060.0,0.76241796]
[1752230758863,0.027404,118090.0,118080.0,0.20085498]
[1752230759078,0.002,118090.0,118080.0,0.88870533]
[1752230759299,0.002,118090.0,118080.0,0.8918254]
[1752230759534,0.002,118090.0,118080.0,0.90029387]
[1752230759983,0.002,118090.0,118080.0,0.90876227]
[1752230760213,0.002,118090.0,118080.0,0.8918254]
[1752230760656,0.002,118090.0,118080.0,0.90029373]
[1752230761790,0.002,118090.0,118080.0,1.39297824]
[1752230762001,0.002,118090.0,118080.0,1.38450991]
[1752230762186,0.002,118090.0,118080.0,0.8918254]
[1752230762420,0.002,118090.0,118080.0,0.90029387]
[1752230762635,0.002,118090.0,118080.0,0.91076227]
[1752230762853,0.002,118090.0,118080.0,0.92664409]
[1752230763039,0.002,118090.0,118080.0,0.87160957]
[1752230763484,0.13116,118110.0,118090.0,0.05424085]
[1752230763710,0.21658993,118110.0,118090.0,0.07007814]
[1752230763922,0.55658993,118110.0,118100.0,0.00312]
[1752230764135,0.55658993,118110.0,118100.0,0.01895729]
[1752230764968,0.55658993,118110.0,118100.0,0.02091729]
[1752230766391,0.42842993,118110.0,118100.0,0.02091729]
[1752230766616,0.21858993,118110.0,118100.0,0.07555814]
[1752230767390,0.004,118110.0,118100.0,0.83711797]
[1752230767598,0.004,118110.0,118100.0,0.38253355]
[1752230767796,0.004,118110.0,118100.0,0.3910008]
[1752230767997,0.004,118110.0,118100.0,0.39100087]
[1752230768206,0.004,118110.0,118100.0,0.21318554]
[1752230768406,0.004,118110.0,118100.0,0.38253347]
[1752230768571,0.004,118110.0,118100.0,0.21314063]
[1752230768769,0.004,118110.0,118100.0,0.20467323]
[1752230769004,0.004,118110.0,118100.0,0.21314063]
[1752230769196,0.004,118110.0,118100.0,0.39095582]
[1752230769550,0.004,118110.0,118100.0,0.39095596]
[1752230769793,0.004,118110.0,118100.0,0.39095589]
[1752230769972,0.004,118110.0,118100.0,0.39095596]
[1752230770177,0.004,118110.0,118100.0,0.20467323]
[1752230770401,0.004,118110.0,118100.0,0.21314063]
[1752230771018,0.004,118110.0,118100.0,0.21314055]
[1752230771926,0.004,118110.0,118100.0,0.38248856]
[1752230772357,0.004,118110.0,118100.0,0.39095574]
[1752230772767,0.004,118110.0,118100.0,0.38248856]
[1752230773185,0.004,118110.0,118100.0,0.84553959]
[1752230773406,0.004,118110.0,118100.0,0.39942285]
[1752230773630,0.74,118120.0,118110.0,0.01454085]
[1752230773845,0.74,118120.0,118110.0,0.03033323]
[1752230774061,0.74,118120.0,118110.0,0.2017669]
[1752230774265,0.74,118120.0,118110.0,0.03536287]
[1752230775121,0.74191768,118120.0,118110.0,0.03536287]
[1752230775347,0.73991768,118120.0,118110.0,0.03536287]
[1752230775581,0.34,118120.0,118110.0,0.24179654]
[1752230775800,0.0024,118130.0,118120.0,0.01454085]
[1752230776011,0.0024,118130.0,118120.0,0.05162287]
[1752230776281,0.0024,118130.0,118120.0,0.32126883]
[1752230776479,0.0024,118130.0,118120.0,0.4821222]
[1752230776699,0.0024,118130.0,118120.0,0.50938809]
[1752230777335,0.0024,118130.0,118120.0,0.51785391]
[1752230777542,0.0024,118130.0,118120.0,0.50938816]
[1752230777751,0.0024,118130.0,118120.0,0.33160287]
[1752230778397,0.78004999,118130.0,118120.0,0.29150287]
[1752230778613,0.90307992,118130.0,118120.0,0.03032287]
[1752230778840,0.90307992,118130.0,118120.0,0.01678202]
[1752230779681,0.90307992,118130.0,118120.0,0.01578202]
[1752230779918,0.90407992,118130.0,118120.0,0.01578202]
[1752230782225,1.30407992,118130.0,118120.0,0.01578202]
[1752230783311,0.90407992,118130.0,118120.0,0.01578202]
[1752230783518,0.56167992,118130.0,118120.0,0.01578202]
[1752230784794,0.58707492,118130.0,118120.0,0.01578202]
[1752230785464,0.92707492,118130.0,118120.0,0.01578202]
[1752230787612,0.48942493,118130.0,118120.0,0.01578202]
[1752230787821,0.92707492,118130.0,118120.0,0.01578202]
[1752230790856,0.34,118120.0,118110.0,0.00294]
[1752230791074,0.99215992,118120.0,118110.0,0.01876871]
[1752230791740,0.99215992,118120.0,118110.0,0.02086871]